[Event "Titled Tuesday Blitz October 11 Late 2022"]
[White "Sjugirov, Sanan"]
[Black "Sohal, Tanraj"]
[WhiteFideId "4189302"]
[BlackFideId "2608499"]
[WhiteElo "2609"]
[BlackElo "2200"]
[Result "1-0"]
[Round "01"]
[TimeControl "180+1"]
[Date "2022.10.11"]
[WhiteClock "0:00:04"]
[BlackClock "0:00:02"]

1. e4 {[%clk 0:03:00]}  c6 {[%clk 0:02:53]} 2. d4 {[%clk 0:03:00]}  d5 {[%clk 0:02:54]} 3. e5 {[%clk 0:03:01]}  Bf5 {[%clk 0:02:52]} 4. h4 {[%clk 0:03:01]}  h6 {[%clk 0:02:50]} 5. g4 {[%clk 0:03:00]}  Bh7 {[%clk 0:02:51]} 6. e6 {[%clk 0:02:59]}  Nf6 {[%clk 0:02:41]} 7. exf7+ {[%clk 0:02:57]}  Kxf7 {[%clk 0:02:41]} 8. g5 {[%clk 0:02:42]}  Ne4 {[%clk 0:02:34]} 9. Nf3 {[%clk 0:02:36]}  Nd7 {[%clk 0:02:28]} 10. Nc3 {[%clk 0:02:33]}  e5 {[%clk 0:02:24]} 11. Nxe5+ {[%clk 0:02:23]}  Nxe5 {[%clk 0:02:23]} 12. dxe5 {[%clk 0:02:24]}  Bb4 {[%clk 0:02:22]} 13. Bd2 {[%clk 0:02:21]}  Qb6 {[%clk 0:02:10]} 14. Nxe4 {[%clk 0:01:55]}  Bxe4 {[%clk 0:02:07]} 15. Rh3 {[%clk 0:01:56]}  Bxd2+ {[%clk 0:01:52]} 16. Qxd2 {[%clk 0:01:56]}  Qxb2 {[%clk 0:01:52]} 17. e6+ {[%clk 0:01:24]}  Kxe6 {[%clk 0:01:42]} 18. Rc1 {[%clk 0:01:25]}  hxg5 {[%clk 0:01:21]} 19. Re3 {[%clk 0:00:38]}  g4 {[%clk 0:00:57]} 20. Bg2 {[%clk 0:00:38]}  Qe5 {[%clk 0:00:48]} 21. Bxe4 {[%clk 0:00:36]}  dxe4 {[%clk 0:00:47]} 22. Qb4 {[%clk 0:00:31]}  Kf5 {[%clk 0:00:33]} 23. Qxb7 {[%clk 0:00:31]}  Rxh4 {[%clk 0:00:18]} 24. Qxa8 {[%clk 0:00:09]}  Rh1+ {[%clk 0:00:18]} 25. Kd2 {[%clk 0:00:09]}  Qd4+ {[%clk 0:00:12]} 26. Rd3 {[%clk 0:00:07]}  Qxf2+ {[%clk 0:00:06]} 27. Kc3 {[%clk 0:00:07]}  Qc5+ {[%clk 0:00:04]} 28. Kb2 {[%clk 0:00:07]}  Qb4+ {[%clk 0:00:03]} 29. Rb3 {[%clk 0:00:07]}  Qd4+ {[%clk 0:00:03]} 30. c3 {[%clk 0:00:06]}  Rh2+ {[%clk 0:00:02]} 31. Ka1 {[%clk 0:00:05]}  Qd2 {[%clk 0:00:02]} 32. Qf8+ {[%clk 0:00:05]}  Kg5 {[%clk 0:00:02]} 33. Qe7+ {[%clk 0:00:05]}  Kh6 {[%clk 0:00:02]} 34. Qa3 {[%clk 0:00:05]}  Qe2 {[%clk 0:00:01]} 35. Rcb1 {[%clk 0:00:05]}  Qf3 {[%clk 0:00:02]} 36. Qd6+ {[%clk 0:00:04]} 1-0


[Site "https://www.chess.com"]

[Event "Titled Tuesday Blitz October 11 Late 2022"]
[White "Svicevic, Rastko"]
[Black "Hardaway, Brewington"]
[WhiteFideId "916315"]
[BlackFideId "30941849"]
[WhiteElo "2103"]
[BlackElo "2159"]
[Result "0-1"]
[Round "01"]
[TimeControl "180+1"]
[Date "2022.10.12"]
[WhiteClock "0:00:38"]
[BlackClock "0:00:31"]

1. d4 {[%clk 0:02:59]}  Nf6 {[%clk 0:02:48]} 2. Bg5 {[%clk 0:03:00]}  e6 {[%clk 0:02:47]} 3. e4 {[%clk 0:02:58]}  Be7 {[%clk 0:02:47]} 4. Bd3 {[%clk 0:02:55]}  d5 {[%clk 0:02:45]} 5. e5 {[%clk 0:02:55]}  Nfd7 {[%clk 0:02:40]} 6. Bxe7 {[%clk 0:02:55]}  Qxe7 {[%clk 0:02:41]} 7. Qg4 {[%clk 0:02:55]}  g6 {[%clk 0:02:37]} 8. Nd2 {[%clk 0:02:55]}  c5 {[%clk 0:02:30]} 9. c3 {[%clk 0:02:55]}  Nc6 {[%clk 0:02:29]} 10. Ngf3 {[%clk 0:02:45]}  cxd4 {[%clk 0:02:11]} 11. cxd4 {[%clk 0:02:46]}  Qb4 {[%clk 0:02:11]} 12. O-O {[%clk 0:02:38]}  Ndxe5 {[%clk 0:01:58]} 13. Nxe5 {[%clk 0:02:27]}  Nxe5 {[%clk 0:01:58]} 14. Qg3 {[%clk 0:02:14]}  Qxd4 {[%clk 0:01:50]} 15. Bb5+ {[%clk 0:02:11]}  Nc6 {[%clk 0:01:38]} 16. Nb3 {[%clk 0:01:57]}  Qb6 {[%clk 0:01:28]} 17. Bxc6+ {[%clk 0:01:51]}  bxc6 {[%clk 0:01:26]} 18. Qd6 {[%clk 0:01:51]}  c5 {[%clk 0:01:24]} 19. Qxc5 {[%clk 0:01:37]}  Qxc5 {[%clk 0:01:24]} 20. Nxc5 {[%clk 0:01:37]}  Ke7 {[%clk 0:01:16]} 21. b4 {[%clk 0:01:38]}  Rd8 {[%clk 0:01:06]} 22. a4 {[%clk 0:01:29]}  Rb8 {[%clk 0:01:05]} 23. b5 {[%clk 0:01:27]}  Kd6 {[%clk 0:01:01]} 24. Rfc1 {[%clk 0:01:25]}  e5 {[%clk 0:01:00]} 25. f3 {[%clk 0:01:19]}  h5 {[%clk 0:00:55]} 26. h4 {[%clk 0:01:17]}  Bf5 {[%clk 0:00:54]} 27. Kf2 {[%clk 0:01:17]}  Rbc8 {[%clk 0:00:53]} 28. Nb7+ {[%clk 0:01:12]}  Kd7 {[%clk 0:00:48]} 29. Nc5+ {[%clk 0:01:06]}  Ke7 {[%clk 0:00:44]} 30. a5 {[%clk 0:01:07]}  Rb8 {[%clk 0:00:41]} 31. g4 {[%clk 0:00:51]}  hxg4 {[%clk 0:00:41]} 32. fxg4 {[%clk 0:00:51]}  Bxg4 {[%clk 0:00:42]} 33. Rcb1 {[%clk 0:00:50]}  Bf5 {[%clk 0:00:42]} 34. Rb2 {[%clk 0:00:48]}  Kd6 {[%clk 0:00:41]} 35. Rc1 {[%clk 0:00:38]}  Rdc8 {[%clk 0:00:33]} 36. Nb7+ {[%clk 0:00:38]}  Rxb7 {[%clk 0:00:31]} 0-1


[Site "https://www.chess.com"]

[Event "Titled Tuesday Blitz October 11 Late 2022"]
[White "Szabo, Marcell"]
[Black "Joubert, Dantelle"]
[WhiteFideId "2072033"]
[BlackFideId "14310813"]
[WhiteElo "1795"]
[BlackElo "1507"]
[Result "1-0"]
[Round "01"]
[TimeControl "180+1"]
[Date "2022.10.12"]
[WhiteClock "0:00:26"]
[BlackClock "0:00:16"]

1. e4 {[%clk 0:02:56]}  e5 {[%clk 0:02:59]} 2. Nf3 {[%clk 0:02:56]}  Nc6 {[%clk 0:02:57]} 3. Bc4 {[%clk 0:02:56]}  Bc5 {[%clk 0:02:56]} 4. c3 {[%clk 0:02:55]}  Nf6 {[%clk 0:02:56]} 5. O-O {[%clk 0:02:55]}  O-O {[%clk 0:02:51]} 6. d4 {[%clk 0:02:55]}  exd4 {[%clk 0:02:43]} 7. cxd4 {[%clk 0:02:56]}  Bb6 {[%clk 0:02:34]} 8. e5 {[%clk 0:02:57]}  Ne8 {[%clk 0:02:23]} 9. Bg5 {[%clk 0:02:56]}  Ne7 {[%clk 0:02:20]} 10. Nc3 {[%clk 0:02:53]}  h6 {[%clk 0:02:15]} 11. Bh4 {[%clk 0:02:50]}  c6 {[%clk 0:02:06]} 12. Ne4 {[%clk 0:02:39]}  d6 {[%clk 0:01:41]} 13. Bb3 {[%clk 0:01:47]}  d5 {[%clk 0:01:25]} 14. Ng3 {[%clk 0:01:36]}  g6 {[%clk 0:01:12]} 15. Bc2 {[%clk 0:01:34]}  Ng7 {[%clk 0:01:11]} 16. Bf6 {[%clk 0:01:33]}  Qd7 {[%clk 0:01:04]} 17. Re1 {[%clk 0:01:30]}  Nef5 {[%clk 0:01:00]} 18. e6 {[%clk 0:01:12]}  fxe6 {[%clk 0:01:00]} 19. Ne5 {[%clk 0:01:11]}  Qe8 {[%clk 0:00:57]} 20. Bxg7 {[%clk 0:01:09]}  Kxg7 {[%clk 0:00:49]} 21. Bxf5 {[%clk 0:01:08]}  exf5 {[%clk 0:00:38]} 22. Qd2 {[%clk 0:00:51]}  Qd8 {[%clk 0:00:29]} 23. f4 {[%clk 0:00:38]}  Ba5 {[%clk 0:00:28]} 24. b4 {[%clk 0:00:38]}  Bb6 {[%clk 0:00:26]} 25. a4 {[%clk 0:00:39]}  a5 {[%clk 0:00:25]} 26. Nf3 {[%clk 0:00:36]}  Qf6 {[%clk 0:00:21]} 27. Re5 {[%clk 0:00:32]}  Bc7 {[%clk 0:00:21]} 28. Rae1 {[%clk 0:00:31]}  Bd6 {[%clk 0:00:20]} 29. h4 {[%clk 0:00:27]}  Bxb4 {[%clk 0:00:19]} 30. Qe2 {[%clk 0:00:26]}  Bxe1 {[%clk 0:00:19]} 31. Qxe1 {[%clk 0:00:27]}  Bd7 {[%clk 0:00:18]} 32. h5 {[%clk 0:00:27]}  g5 {[%clk 0:00:17]} 33. fxg5 {[%clk 0:00:26]}  hxg5 {[%clk 0:00:17]} 34. h6+ {[%clk 0:00:27]}  Kh7 {[%clk 0:00:17]} 35. Nh5 {[%clk 0:00:23]}  Qg6 {[%clk 0:00:16]} 36. Re7+ {[%clk 0:00:23]}  Rf7 {[%clk 0:00:16]} 37. Rxf7+ {[%clk 0:00:24]}  Qxf7 {[%clk 0:00:16]} 38. Nxg5+ {[%clk 0:00:25]}  Kg6 {[%clk 0:00:15]} 39. Nxf7 {[%clk 0:00:26]}  Kxf7 {[%clk 0:00:16]} 40. Qe5 {[%clk 0:00:25]}  Re8 {[%clk 0:00:15]} 41. Qf6+ {[%clk 0:00:25]}  Kg8 {[%clk 0:00:16]} 42. Qg7# {[%clk 0:00:26]} 1-0


[Site "https://www.chess.com"]

[Event "Titled Tuesday Blitz October 11 Late 2022"]
[White "Taboas Rodriguez, Daniel"]
[Black "Fedoseev, Vladimir"]
[WhiteFideId "2208466"]
[BlackFideId "24130737"]
[WhiteElo "2429"]
[BlackElo "2726"]
[Result "0-1"]
[Round "01"]
[TimeControl "180+1"]
[Date "2022.10.11"]
[WhiteClock "0:00:15"]
[BlackClock "0:00:07"]

1. d4 {[%clk 0:02:59]}  Nf6 {[%clk 0:02:32]} 2. Nf3 {[%clk 0:03:00]}  g6 {[%clk 0:02:32]} 3. c4 {[%clk 0:03:00]}  Bg7 {[%clk 0:02:32]} 4. Nc3 {[%clk 0:03:01]}  d6 {[%clk 0:02:32]} 5. e4 {[%clk 0:03:01]}  Bg4 {[%clk 0:02:32]} 6. Be2 {[%clk 0:03:02]}  O-O {[%clk 0:02:31]} 7. Be3 {[%clk 0:03:02]}  Nfd7 {[%clk 0:02:30]} 8. Rc1 {[%clk 0:03:03]}  c5 {[%clk 0:02:29]} 9. d5 {[%clk 0:03:02]}  a6 {[%clk 0:02:29]} 10. a4 {[%clk 0:03:01]}  Bxf3 {[%clk 0:02:10]} 11. Bxf3 {[%clk 0:03:02]}  b5 {[%clk 0:02:10]} 12. axb5 {[%clk 0:02:59]}  axb5 {[%clk 0:02:09]} 13. cxb5 {[%clk 0:02:51]}  Nb6 {[%clk 0:02:09]} 14. Be2 {[%clk 0:02:48]}  N8d7 {[%clk 0:02:07]} 15. O-O {[%clk 0:02:47]}  Qc7 {[%clk 0:02:01]} 16. Qb3 {[%clk 0:02:24]}  Ra5 {[%clk 0:01:54]} 17. Ra1 {[%clk 0:02:23]}  Rfa8 {[%clk 0:01:54]} 18. Rxa5 {[%clk 0:02:23]}  Rxa5 {[%clk 0:01:55]} 19. Bg5 {[%clk 0:02:19]}  h6 {[%clk 0:01:36]} 20. Be3 {[%clk 0:01:44]}  Kh7 {[%clk 0:01:28]} 21. h3 {[%clk 0:01:43]}  Qa7 {[%clk 0:01:17]} 22. Kh2 {[%clk 0:01:41]}  Bd4 {[%clk 0:01:15]} 23. Bd2 {[%clk 0:01:35]}  Nf6 {[%clk 0:01:12]} 24. Qc2 {[%clk 0:01:33]}  Qd7 {[%clk 0:00:58]} 25. Qd3 {[%clk 0:01:21]}  e6 {[%clk 0:00:57]} 26. Bf3 {[%clk 0:01:09]}  Ra7 {[%clk 0:00:50]} 27. Be3 {[%clk 0:01:01]}  Be5+ {[%clk 0:00:43]} 28. Kh1 {[%clk 0:01:00]}  exd5 {[%clk 0:00:43]} 29. exd5 {[%clk 0:00:59]}  Qf5 {[%clk 0:00:41]} 30. Qxf5 {[%clk 0:00:55]}  gxf5 {[%clk 0:00:40]} 31. Rd1 {[%clk 0:00:55]}  f4 {[%clk 0:00:27]} 32. Bd2 {[%clk 0:00:55]}  Nc4 {[%clk 0:00:26]} 33. Bc1 {[%clk 0:00:45]}  Ra1 {[%clk 0:00:24]} 34. Kg1 {[%clk 0:00:42]}  Kg7 {[%clk 0:00:19]} 35. Kf1 {[%clk 0:00:42]}  Nd7 {[%clk 0:00:11]} 36. Ke2 {[%clk 0:00:41]}  Ndb6 {[%clk 0:00:11]} 37. Kd3 {[%clk 0:00:40]}  Ra7 {[%clk 0:00:08]} 38. b3 {[%clk 0:00:31]}  Na5 {[%clk 0:00:07]} 39. Kc2 {[%clk 0:00:31]}  c4 {[%clk 0:00:08]} 40. b4 {[%clk 0:00:24]}  Nb3 {[%clk 0:00:08]} 41. Bb2 {[%clk 0:00:24]}  Nd4+ {[%clk 0:00:08]} 42. Kb1 {[%clk 0:00:22]}  Rb7 {[%clk 0:00:05]} 43. Ne4 {[%clk 0:00:19]}  Nxb5 {[%clk 0:00:05]} 44. Nxd6 {[%clk 0:00:18]}  c3 {[%clk 0:00:03]} 45. Nxb7 {[%clk 0:00:17]}  cxb2 {[%clk 0:00:03]} 46. Rd2 {[%clk 0:00:17]}  Na3+ {[%clk 0:00:03]} 47. Ka2 {[%clk 0:00:13]}  b1=Q+ {[%clk 0:00:04]} 48. Kxa3 {[%clk 0:00:14]}  Nc4+ {[%clk 0:00:05]} 49. Ka4 {[%clk 0:00:14]}  Nxd2 {[%clk 0:00:06]} 50. d6 {[%clk 0:00:13]}  Qc2+ {[%clk 0:00:06]} 51. Kb5 {[%clk 0:00:14]}  Qd3+ {[%clk 0:00:06]} 52. Kc6 {[%clk 0:00:14]}  Nxf3 {[%clk 0:00:06]} 53. Nc5 {[%clk 0:00:15]}  Qxd6+ {[%clk 0:00:06]} 54. Kb5 {[%clk 0:00:15]}  Nd4+ {[%clk 0:00:07]} 55. Kc4 {[%clk 0:00:15]}  Qc6 {[%clk 0:00:07]} 56. b5 {[%clk 0:00:15]}  Qxb5+ {[%clk 0:00:07]} 0-1


[Site "https://www.chess.com"]

[Event "Titled Tuesday Blitz October 11 Late 2022"]
[White "Tarasova, Viktoriya"]
[Black "Levitskiy, Andrey"]
[WhiteFideId "4175840"]
[BlackFideId "14132885"]
[WhiteElo "2182"]
[BlackElo "2318"]
[Result "0-1"]
[Round "01"]
[TimeControl "180+1"]
[Date "2022.10.12"]
[WhiteClock "0:00:06"]
[BlackClock "0:01:08"]

1. d4 {[%clk 0:03:00]}  Nf6 {[%clk 0:02:59]} 2. c4 {[%clk 0:03:00]}  e6 {[%clk 0:02:59]} 3. Nc3 {[%clk 0:02:58]}  Bb4 {[%clk 0:03:00]} 4. Nf3 {[%clk 0:02:57]}  O-O {[%clk 0:03:00]} 5. Bg5 {[%clk 0:02:55]}  d6 {[%clk 0:02:55]} 6. e3 {[%clk 0:02:53]}  Nbd7 {[%clk 0:02:55]} 7. Be2 {[%clk 0:02:48]}  Qe8 {[%clk 0:02:49]} 8. O-O {[%clk 0:02:48]}  Bxc3 {[%clk 0:02:50]} 9. bxc3 {[%clk 0:02:47]}  Ne4 {[%clk 0:02:50]} 10. Qc2 {[%clk 0:02:45]}  Nxg5 {[%clk 0:02:39]} 11. Nxg5 {[%clk 0:02:45]}  Nf6 {[%clk 0:02:40]} 12. Bd3 {[%clk 0:02:41]}  h6 {[%clk 0:02:38]} 13. Nf3 {[%clk 0:02:38]}  b6 {[%clk 0:02:35]} 14. e4 {[%clk 0:02:37]}  Bb7 {[%clk 0:02:33]} 15. e5 {[%clk 0:02:31]}  Nd7 {[%clk 0:02:23]} 16. Be4 {[%clk 0:02:27]}  Qc8 {[%clk 0:02:15]} 17. Rfe1 {[%clk 0:02:23]}  dxe5 {[%clk 0:02:10]} 18. Nxe5 {[%clk 0:02:14]}  Nxe5 {[%clk 0:02:10]} 19. dxe5 {[%clk 0:02:14]}  Rd8 {[%clk 0:02:08]} 20. Rad1 {[%clk 0:02:12]}  Bxe4 {[%clk 0:02:04]} 21. Qxe4 {[%clk 0:02:11]}  Qa6 {[%clk 0:02:03]} 22. Qc6 {[%clk 0:02:06]}  Qxa2 {[%clk 0:01:59]} 23. Rxd8+ {[%clk 0:01:49]}  Rxd8 {[%clk 0:01:57]} 24. Qxc7 {[%clk 0:01:48]}  Qd2 {[%clk 0:01:52]} 25. Rf1 {[%clk 0:01:39]}  Qd7 {[%clk 0:01:51]} 26. Qxd7 {[%clk 0:01:20]}  Rxd7 {[%clk 0:01:52]} 27. Ra1 {[%clk 0:01:13]}  Rd3 {[%clk 0:01:50]} 28. h3 {[%clk 0:00:56]}  Rxc3 {[%clk 0:01:49]} 29. Rxa7 {[%clk 0:00:55]}  Rxc4 {[%clk 0:01:49]} 30. Rb7 {[%clk 0:00:51]}  Rb4 {[%clk 0:01:48]} 31. Kf1 {[%clk 0:00:42]}  Rb2 {[%clk 0:01:46]} 32. g4 {[%clk 0:00:37]}  g6 {[%clk 0:01:44]} 33. Kg2 {[%clk 0:00:34]}  Kg7 {[%clk 0:01:42]} 34. Kg3 {[%clk 0:00:34]}  b5 {[%clk 0:01:41]} 35. h4 {[%clk 0:00:33]}  b4 {[%clk 0:01:32]} 36. f4 {[%clk 0:00:32]}  h5 {[%clk 0:01:26]} 37. gxh5 {[%clk 0:00:23]}  gxh5 {[%clk 0:01:24]} 38. f5 {[%clk 0:00:24]}  Kg8 {[%clk 0:01:17]} 39. fxe6 {[%clk 0:00:22]}  fxe6 {[%clk 0:01:18]} 40. Kf4 {[%clk 0:00:22]}  Rg2 {[%clk 0:01:12]} 41. Rb6 {[%clk 0:00:16]}  Rg4+ {[%clk 0:01:10]} 42. Kf3 {[%clk 0:00:16]}  Kf7 {[%clk 0:01:11]} 43. Rb7+ {[%clk 0:00:16]}  Kg6 {[%clk 0:01:11]} 44. Rb5 {[%clk 0:00:12]}  Rxh4 {[%clk 0:01:08]} 45. Kg3 {[%clk 0:00:10]}  Rc4 {[%clk 0:01:08]} 46. Rb8 {[%clk 0:00:08]}  Kf5 {[%clk 0:01:07]} 47. Rh8 {[%clk 0:00:09]}  h4+ {[%clk 0:01:08]} 48. Kf3 {[%clk 0:00:08]}  Kxe5 {[%clk 0:01:08]} 49. Rh5+ {[%clk 0:00:06]}  Kd6 {[%clk 0:01:08]} 50. Rh8 {[%clk 0:00:06]}  h3 {[%clk 0:01:08]} 0-1


[Site "https://www.chess.com"]

[Event "Titled Tuesday Blitz October 11 Late 2022"]
[White "Tari, Aryan"]
[Black "Kanter, Eduard"]
[WhiteFideId "1510045"]
[BlackFideId "4103963"]
[WhiteElo "2612"]
[BlackElo "2267"]
[Result "1-0"]
[Round "01"]
[TimeControl "180+1"]
[Date "2022.10.11"]
[WhiteClock "0:01:23"]
[BlackClock "0:00:04"]

1. Nf3 {[%clk 0:02:56]}  d5 {[%clk 0:02:57]} 2. d4 {[%clk 0:02:55]}  Nf6 {[%clk 0:02:54]} 3. Bf4 {[%clk 0:02:55]}  c5 {[%clk 0:02:52]} 4. e3 {[%clk 0:02:55]}  Nc6 {[%clk 0:02:52]} 5. Nbd2 {[%clk 0:02:55]}  Qb6 {[%clk 0:02:22]} 6. dxc5 {[%clk 0:02:53]}  Qxb2 {[%clk 0:02:20]} 7. Rb1 {[%clk 0:02:53]}  Qc3 {[%clk 0:02:20]} 8. Bb5 {[%clk 0:02:53]}  Bd7 {[%clk 0:02:11]} 9. O-O {[%clk 0:02:40]}  Qxc5 {[%clk 0:02:02]} 10. c4 {[%clk 0:02:37]}  e6 {[%clk 0:01:59]} 11. Ne5 {[%clk 0:02:23]}  Be7 {[%clk 0:01:33]} 12. Nb3 {[%clk 0:01:59]}  Qa3 {[%clk 0:01:27]} 13. Nxd7 {[%clk 0:01:59]}  Nxd7 {[%clk 0:01:09]} 14. cxd5 {[%clk 0:01:59]}  exd5 {[%clk 0:00:39]} 15. Qxd5 {[%clk 0:02:00]}  Rc8 {[%clk 0:00:29]} 16. Qf5 {[%clk 0:01:41]}  g6 {[%clk 0:00:23]} 17. Qh3 {[%clk 0:01:41]}  f5 {[%clk 0:00:18]} 18. Bc4 {[%clk 0:01:35]}  Nde5 {[%clk 0:00:16]} 19. Be6 {[%clk 0:01:35]}  Rd8 {[%clk 0:00:16]} 20. Nd4 {[%clk 0:01:34]}  Nxd4 {[%clk 0:00:11]} 21. Bxe5 {[%clk 0:01:34]}  Nxe6 {[%clk 0:00:11]} 22. Bxh8 {[%clk 0:01:33]}  Ng5 {[%clk 0:00:11]} 23. Qg3 {[%clk 0:01:31]}  Kf7 {[%clk 0:00:09]} 24. Bd4 {[%clk 0:01:27]}  Ne6 {[%clk 0:00:07]} 25. Rxb7 {[%clk 0:01:27]}  Qxa2 {[%clk 0:00:04]} 26. Qh4 {[%clk 0:01:23]} 1-0


[Site "https://www.chess.com"]

[Event "Titled Tuesday Blitz October 11 Late 2022"]
[White "Tayar, Jonathan"]
[Black "Prydun, Andriy"]
[WhiteFideId "2606534"]
[BlackFideId "14145898"]
[WhiteElo "2406"]
[BlackElo "2163"]
[Result "1-0"]
[Round "01"]
[TimeControl "180+1"]
[Date "2022.10.12"]
[WhiteClock "0:00:19"]
[BlackClock "0:00:02"]

1. e4 {[%clk 0:02:59]}  c6 {[%clk 0:02:52]} 2. c4 {[%clk 0:02:57]}  e5 {[%clk 0:02:49]} 3. Nf3 {[%clk 0:02:48]}  Nf6 {[%clk 0:02:43]} 4. Nc3 {[%clk 0:02:38]}  d5 {[%clk 0:02:14]} 5. exd5 {[%clk 0:02:21]}  e4 {[%clk 0:02:04]} 6. Nd4 {[%clk 0:02:18]}  Bc5 {[%clk 0:01:37]} 7. Nb3 {[%clk 0:02:08]}  Bd6 {[%clk 0:01:35]} 8. d4 {[%clk 0:02:05]}  cxd5 {[%clk 0:01:31]} 9. Bg5 {[%clk 0:01:49]}  dxc4 {[%clk 0:01:23]} 10. Bxc4 {[%clk 0:01:47]}  O-O {[%clk 0:01:19]} 11. Qd2 {[%clk 0:01:15]}  a6 {[%clk 0:01:05]} 12. O-O {[%clk 0:01:11]}  Nbd7 {[%clk 0:00:27]} 13. h3 {[%clk 0:01:00]}  b5 {[%clk 0:00:21]} 14. Bd5 {[%clk 0:00:56]}  b4 {[%clk 0:00:20]} 15. Nxe4 {[%clk 0:00:53]}  Nxe4 {[%clk 0:00:06]} 16. Bxe4 {[%clk 0:00:54]}  f6 {[%clk 0:00:05]} 17. Bxa8 {[%clk 0:00:51]}  fxg5 {[%clk 0:00:03]} 18. Rae1 {[%clk 0:00:39]}  g4 {[%clk 0:00:03]} 19. Bd5+ {[%clk 0:00:20]}  Kh8 {[%clk 0:00:02]} 20. Be6 {[%clk 0:00:21]}  Qh4 {[%clk 0:00:02]} 21. Bxg4 {[%clk 0:00:19]} 1-0


[Site "https://www.chess.com"]

[Event "Titled Tuesday Blitz October 11 Late 2022"]
[White "Thomforde-Toates, Noah"]
[Black "Ward, Ieuan C"]
[WhiteFideId "30951992"]
[BlackFideId "406627"]
[WhiteElo "2675"]
[BlackElo "2340"]
[Result "1-0"]
[Round "01"]
[TimeControl "180+1"]
[Date "2022.10.12"]
[WhiteClock "0:01:25"]
[BlackClock "0:00:09"]

1. c4 {[%clk 0:03:00]}  e6 {[%clk 0:02:59]} 2. Nf3 {[%clk 0:03:00]}  d6 {[%clk 0:03:00]} 3. e3 {[%clk 0:03:00]}  Nf6 {[%clk 0:02:59]} 4. b3 {[%clk 0:03:00]}  c5 {[%clk 0:03:00]} 5. Bb2 {[%clk 0:03:01]}  Nc6 {[%clk 0:03:00]} 6. Be2 {[%clk 0:03:00]}  Be7 {[%clk 0:03:00]} 7. O-O {[%clk 0:02:59]}  O-O {[%clk 0:03:00]} 8. d4 {[%clk 0:02:59]}  Qc7 {[%clk 0:02:58]} 9. Nc3 {[%clk 0:02:58]}  a6 {[%clk 0:02:57]} 10. d5 {[%clk 0:02:58]}  exd5 {[%clk 0:02:51]} 11. Nxd5 {[%clk 0:02:57]}  Nxd5 {[%clk 0:02:49]} 12. Qxd5 {[%clk 0:02:57]}  Be6 {[%clk 0:02:46]} 13. Qh5 {[%clk 0:02:57]}  h6 {[%clk 0:02:31]} 14. Rad1 {[%clk 0:02:50]}  Rad8 {[%clk 0:02:27]} 15. Nh4 {[%clk 0:02:35]}  Ne5 {[%clk 0:02:17]} 16. Nf5 {[%clk 0:02:32]}  g6 {[%clk 0:01:42]} 17. Nxe7+ {[%clk 0:02:20]}  Qxe7 {[%clk 0:01:43]} 18. Qxh6 {[%clk 0:02:19]}  f6 {[%clk 0:00:52]} 19. f4 {[%clk 0:02:14]}  Ng4 {[%clk 0:00:42]} 20. Bxg4 {[%clk 0:02:08]}  Bxg4 {[%clk 0:00:42]} 21. Qxg6+ {[%clk 0:02:06]}  Qg7 {[%clk 0:00:42]} 22. Qxg7+ {[%clk 0:02:06]}  Kxg7 {[%clk 0:00:43]} 23. Rd5 {[%clk 0:02:06]}  Be6 {[%clk 0:00:43]} 24. Rd2 {[%clk 0:02:04]}  d5 {[%clk 0:00:41]} 25. Rfd1 {[%clk 0:02:01]}  Bg4 {[%clk 0:00:40]} 26. Rc1 {[%clk 0:01:55]}  dxc4 {[%clk 0:00:35]} 27. Rxd8 {[%clk 0:01:54]}  Rxd8 {[%clk 0:00:34]} 28. h3 {[%clk 0:01:51]}  Rd1+ {[%clk 0:00:32]} 29. Rxd1 {[%clk 0:01:41]}  Bxd1 {[%clk 0:00:33]} 30. bxc4 {[%clk 0:01:40]}  Be2 {[%clk 0:00:34]} 31. g4 {[%clk 0:01:37]}  Kf7 {[%clk 0:00:30]} 32. e4 {[%clk 0:01:34]}  Bxc4 {[%clk 0:00:29]} 33. e5 {[%clk 0:01:34]}  fxe5 {[%clk 0:00:28]} 34. Bxe5 {[%clk 0:01:34]}  Bxa2 {[%clk 0:00:28]} 35. Kf2 {[%clk 0:01:34]}  b5 {[%clk 0:00:21]} 36. f5 {[%clk 0:01:34]}  Bb1 {[%clk 0:00:20]} 37. h4 {[%clk 0:01:34]}  b4 {[%clk 0:00:19]} 38. h5 {[%clk 0:01:35]}  c4 {[%clk 0:00:18]} 39. h6 {[%clk 0:01:35]}  Kg8 {[%clk 0:00:19]} 40. Ke3 {[%clk 0:01:34]}  c3 {[%clk 0:00:19]} 41. Kf4 {[%clk 0:01:33]}  c2 {[%clk 0:00:19]} 42. Bb2 {[%clk 0:01:33]}  a5 {[%clk 0:00:19]} 43. g5 {[%clk 0:01:33]}  a4 {[%clk 0:00:18]} 44. g6 {[%clk 0:01:33]}  c1=Q+ {[%clk 0:00:12]} 45. Bxc1 {[%clk 0:01:32]}  a3 {[%clk 0:00:13]} 46. h7+ {[%clk 0:01:32]}  Kg7 {[%clk 0:00:13]} 47. Be3 {[%clk 0:01:26]}  Bxf5 {[%clk 0:00:09]} 48. Kxf5 {[%clk 0:01:25]} 1-0


[Site "https://www.chess.com"]